[Event "*** Titled Tuesday Blitz"]
[Site "Chess.com"]
[Date "2021.04.06"]
[Round "9"]
[White "Kobalia"]
[Black "Gusarov91"]
[Result "1-0"]
[WhiteElo "2780"]
[BlackElo "2632"]
[TimeControl "180+1"]
[EndTime "11:46:53 PDT"]
[Termination "Kobalia won by resignation"]

1. e4 {[%clk 0:03:00.9]} 1... c6 {[%clk 0:02:59.3]} 2. Nf3 {[%clk 0:03:00.3]}
2... d5 {[%clk 0:02:59.7]} 3. exd5 {[%clk 0:03:00.5]} 3... cxd5 {[%clk 0:03:00]}
4. Ne5 {[%clk 0:03:01.1]} 4... Nf6 {[%clk 0:02:55.4]} 5. d4 {[%clk 0:03:00.1]}
5... a6 {[%clk 0:02:54.1]} 6. Bd3 {[%clk 0:02:53]} 6... Nc6 {[%clk 0:02:51.5]}
7. c3 {[%clk 0:02:53]} 7... g6 {[%clk 0:02:50.8]} 8. Bf4 {[%clk 0:02:51.2]} 8...
Bg7 {[%clk 0:02:50.2]} 9. O-O {[%clk 0:02:50.9]} 9... O-O {[%clk 0:02:49.6]} 10.
Re1 {[%clk 0:02:49.7]} 10... Nh5 {[%clk 0:02:48]} 11. Nxc6 {[%clk 0:02:40.1]}
11... bxc6 {[%clk 0:02:42.1]} 12. Bg5 {[%clk 0:02:38.9]} 12... Nf6 {[%clk
0:02:40.3]} 13. Nd2 {[%clk 0:02:37.3]} 13... Qc7 {[%clk 0:02:34.2]} 14. Nf3
{[%clk 0:02:31.3]} 14... Bg4 {[%clk 0:02:33.6]} 15. h3 {[%clk 0:02:30]} 15...
Bxf3 {[%clk 0:02:33.4]} 16. Qxf3 {[%clk 0:02:30.9]} 16... Rfe8 {[%clk 0:02:18]}
17. Re2 {[%clk 0:02:08.4]} 17... a5 {[%clk 0:02:17.3]} 18. Rae1 {[%clk
0:02:07.6]} 18... a4 {[%clk 0:01:49.5]} 19. g4 {[%clk 0:02:06.5]} 19... Qb7
{[%clk 0:01:47.4]} 20. Kh1 {[%clk 0:01:54.6]} 20... Qd7 {[%clk 0:01:31.3]} 21.
Rg1 {[%clk 0:01:51.5]} 21... h6 {[%clk 0:01:26.3]} 22. Bc1 {[%clk 0:01:45.9]}
22... Nh7 {[%clk 0:01:25.7]} 23. h4 {[%clk 0:01:44.2]} 23... e5 {[%clk
0:01:22.4]} 24. dxe5 {[%clk 0:01:41.3]} 24... Rxe5 {[%clk 0:01:20.5]} 25. Rxe5
{[%clk 0:01:40.5]} 25... Bxe5 {[%clk 0:01:21.4]} 26. Bxh6 {[%clk 0:01:39.9]}
26... a3 {[%clk 0:01:22]} 27. b3 {[%clk 0:01:35.9]} 27... Bg7 {[%clk 0:01:09.4]}
28. Bxg7 {[%clk 0:01:28.9]} 28... Kxg7 {[%clk 0:01:10.3]} 29. Qf4 {[%clk
0:01:27.2]} 29... Qe7 {[%clk 0:01:07.6]} 30. g5 {[%clk 0:01:24.4]} 30... Re8
{[%clk 0:01:05.3]} 31. h5 {[%clk 0:01:22.3]} 31... gxh5 {[%clk 0:01:00.2]} 32.
g6 {[%clk 0:01:21.2]} 32... fxg6 {[%clk 0:00:49.7]} 33. Rxg6+ {[%clk 0:01:17.4]}
33... Kh8 {[%clk 0:00:50]} 34. Rh6 {[%clk 0:01:17.4]} 34... Qe1+ {[%clk
0:00:39.3]} 35. Kh2 {[%clk 0:01:17]} 35... Qe5 {[%clk 0:00:38.5]} 36. Rxh7+
{[%clk 0:01:14.6]} 36... Kg8 {[%clk 0:00:38.9]} 37. Qxe5 {[%clk 0:01:13.8]}
37... Rxe5 {[%clk 0:00:39.8]} 38. Rc7 {[%clk 0:01:11.2]} 38... Re6 {[%clk
0:00:39.4]} 39. Ra7 {[%clk 0:01:10]} 39... Rf6 {[%clk 0:00:37.9]} 40. Kg3 {[%clk
0:01:05.9]} 40... h4+ {[%clk 0:00:37.9]} 41. Kxh4 {[%clk 0:01:04.6]} 41... Rxf2
{[%clk 0:00:38.1]} 42. Rxa3 {[%clk 0:01:04.5]} 42... Rf3 {[%clk 0:00:38.6]} 43.
Bg6 {[%clk 0:01:00.4]} 43... Rxc3 {[%clk 0:00:37.7]} 44. Kg5 {[%clk 0:01:00.5]}
44... Rf3 {[%clk 0:00:27.6]} 45. Ra7 {[%clk 0:00:56.2]} 45... c5 {[%clk
0:00:27.1]} 46. Bf5 {[%clk 0:00:56]} 46... Re3 {[%clk 0:00:17.8]} 47. Kf6 {[%clk
0:00:55.7]} 47... Re8 {[%clk 0:00:18]} 48. Be6+ {[%clk 0:00:53.6]} 48... Kh8
{[%clk 0:00:17.4]} 49. Bxd5 {[%clk 0:00:52.3]} 49... Rd8 {[%clk 0:00:16.6]} 50.
Bc4 {[%clk 0:00:51.8]} 50... Rf8+ {[%clk 0:00:16.5]} 51. Kg6 {[%clk 0:00:51.6]}
51... Rf6+ {[%clk 0:00:16.6]} 52. Kg5 {[%clk 0:00:46.1]} 52... Rg6+ {[%clk
0:00:16.7]} 53. Kf5 {[%clk 0:00:45.1]} 53... Rf6+ {[%clk 0:00:16.1]} 54. Ke5
{[%clk 0:00:45]} 54... Rf5+ {[%clk 0:00:10.7]} 55. Kd6 {[%clk 0:00:44.8]} 55...
Rf6+ {[%clk 0:00:09.5]} 56. Be6 {[%clk 0:00:44.8]} 56... Rf2 {[%clk 0:00:07.2]}
57. a4 {[%clk 0:00:43.1]} 57... Rd2+ {[%clk 0:00:06.7]} 58. Bd5 {[%clk
0:00:42.5]} 58... c4 {[%clk 0:00:05.6]} 59. bxc4 {[%clk 0:00:39]} 59... Rf2
{[%clk 0:00:04.3]} 60. Ra8+ {[%clk 0:00:38.4]} 60... Kg7 {[%clk 0:00:04.3]} 61.
Rg8+ {[%clk 0:00:37.7]} 61... Kh7 {[%clk 0:00:03.8]} 62. c5 {[%clk 0:00:36.9]}
62... Rf6+ {[%clk 0:00:04]} 63. Be6 {[%clk 0:00:36.8]} 63... Rf2 {[%clk
0:00:03.9]} 64. c6 {[%clk 0:00:36.5]} 64... Rd2+ {[%clk 0:00:04.7]} 65. Bd5
{[%clk 0:00:36.6]} 65... Rd4 {[%clk 0:00:05.1]} 66. c7 {[%clk 0:00:36.1]} 66...
Rxd5+ {[%clk 0:00:05.7]} 67. Kxd5 {[%clk 0:00:36]} 67... Kxg8 {[%clk 0:00:06.6]}
1-0

[Event "*** Titled Tuesday Blitz"]
[Site "Chess.com"]
[Date "2021.04.06"]
[Round "9"]
[White "swisspower96"]
[Black "esapunov"]
[Result "1-0"]
[WhiteElo "2576"]
[BlackElo "2703"]
[TimeControl "180+1"]
[EndTime "11:46:53 PDT"]
[Termination "swisspower96 won by resignation"]

1. d4 {[%clk 0:03:00.9]} 1... Nf6 {[%clk 0:02:59.6]} 2. c4 {[%clk 0:03:00.8]}
2... g6 {[%clk 0:02:59.7]} 3. Nc3 {[%clk 0:03:00.4]} 3... Bg7 {[%clk 0:02:59.6]}
4. e4 {[%clk 0:03:00.6]} 4... O-O {[%clk 0:02:59.7]} 5. h3 {[%clk 0:03:01.4]}
5... d6 {[%clk 0:02:59.5]} 6. Be3 {[%clk 0:03:02]} 6... a6 {[%clk 0:02:59.5]} 7.
Nf3 {[%clk 0:02:49.5]} 7... Nbd7 {[%clk 0:02:59.1]} 8. g4 {[%clk 0:02:33.8]}
8... c5 {[%clk 0:02:58.4]} 9. Bg2 {[%clk 0:02:21.5]} 9... Rb8 {[%clk 0:02:57.9]}
10. a4 {[%clk 0:02:20.6]} 10... b6 {[%clk 0:02:55.1]} 11. O-O {[%clk 0:02:20.1]}
11... cxd4 {[%clk 0:02:52.8]} 12. Nxd4 {[%clk 0:02:19.8]} 12... Bb7 {[%clk
0:02:52]} 13. Qe2 {[%clk 0:02:14.8]} 13... e6 {[%clk 0:02:51.4]} 14. Rad1 {[%clk
0:02:14.2]} 14... Qc7 {[%clk 0:02:48.3]} 15. b3 {[%clk 0:02:04.7]} 15... Nc5
{[%clk 0:02:46.6]} 16. Bg5 {[%clk 0:01:41]} 16... e5 {[%clk 0:02:33.2]} 17. Nc2
{[%clk 0:01:35.1]} 17... Nxb3 {[%clk 0:02:30.9]} 18. Bxf6 {[%clk 0:01:00.7]}
18... Bxf6 {[%clk 0:02:29.3]} 19. Ne3 {[%clk 0:00:59.3]} 19... Nd4 {[%clk
0:02:16.5]} 20. Qa2 {[%clk 0:00:59.4]} 20... Qd8 {[%clk 0:02:04.4]} 21. Ncd5
{[%clk 0:00:58.3]} 21... Bg5 {[%clk 0:01:55]} 22. Qb2 {[%clk 0:00:35.1]} 22...
Bc6 {[%clk 0:01:48]} 23. f4 {[%clk 0:00:30.5]} 23... exf4 {[%clk 0:01:29.4]} 24.
Nxf4 {[%clk 0:00:21.2]} 24... Bxf4 {[%clk 0:01:19]} 25. Rxf4 {[%clk 0:00:20.5]}
25... Ne6 {[%clk 0:01:19.6]} 26. Rf6 {[%clk 0:00:15.5]} 26... Qe7 {[%clk
0:01:07.7]} 27. h4 {[%clk 0:00:14.8]} 27... Nc5 {[%clk 0:00:59]} 28. g5 {[%clk
0:00:14.8]} 28... h5 {[%clk 0:00:44]} 29. Rdxd6 {[%clk 0:00:10.4]} 29... Bxe4
{[%clk 0:00:35.4]} 30. Nd5 {[%clk 0:00:06.3]} 30... Bxd5 {[%clk 0:00:20.5]} 31.
Bxd5 {[%clk 0:00:05.9]} 31... Kh7 {[%clk 0:00:20.8]} 32. Kg2 {[%clk 0:00:05.7]}
32... Ne4 {[%clk 0:00:17.3]} 33. Rxg6 {[%clk 0:00:02.4]} 33... fxg6 {[%clk
0:00:14.4]} 34. Re6 {[%clk 0:00:02.9]} 34... Qf7 {[%clk 0:00:12]} 35. Rxe4
{[%clk 0:00:02.5]} 35... Qf3+ {[%clk 0:00:11.9]} 36. Kh2 {[%clk 0:00:03.1]}
36... Qf2+ {[%clk 0:00:11.2]} 37. Qxf2 {[%clk 0:00:03.8]} 37... Rxf2+ {[%clk
0:00:11.1]} 38. Kg3 {[%clk 0:00:04.7]} 38... Rff8 {[%clk 0:00:09.9]} 39. Re7+
{[%clk 0:00:05.4]} 39... Kh8 {[%clk 0:00:10.1]} 40. Re6 {[%clk 0:00:06.2]} 40...
Kh7 {[%clk 0:00:08.2]} 41. Re7+ {[%clk 0:00:06.5]} 41... Kh8 {[%clk 0:00:08.2]}
42. Re6 {[%clk 0:00:07.1]} 42... Rg8 {[%clk 0:00:08.6]} 43. Rf6 {[%clk
0:00:07.4]} 43... Rg7 {[%clk 0:00:08.7]} 44. a5 {[%clk 0:00:07.8]} 44... bxa5
{[%clk 0:00:08.8]} 45. Rxa6 {[%clk 0:00:08.6]} 45... Rd8 {[%clk 0:00:06.9]} 46.
Kf4 {[%clk 0:00:08.6]} 46... Re7 {[%clk 0:00:06.8]} 47. Rxg6 {[%clk 0:00:07.9]}
47... Rf8+ {[%clk 0:00:07.2]} 48. Rf6 {[%clk 0:00:08.3]} 48... Rxf6+ {[%clk
0:00:06.7]} 49. gxf6 {[%clk 0:00:09.2]} 49... Ra7 {[%clk 0:00:07.1]} 50. c5
{[%clk 0:00:07.4]} 50... a4 {[%clk 0:00:07.5]} 51. Ke5 {[%clk 0:00:07.4]} 51...
a3 {[%clk 0:00:07.9]} 52. Ba2 {[%clk 0:00:08.1]} 52... Ra5 {[%clk 0:00:06.7]}
53. Kd6 {[%clk 0:00:08.3]} 53... Kh7 {[%clk 0:00:06.2]} 54. c6 {[%clk
0:00:08.8]} 54... Kg6 {[%clk 0:00:06.3]} 55. f7 {[%clk 0:00:09.3]} 55... Kg7
{[%clk 0:00:06]} 56. c7 {[%clk 0:00:09.9]} 56... Ra6+ {[%clk 0:00:06.2]} 57. Kd7
{[%clk 0:00:10.3]} 57... Ra7 {[%clk 0:00:06.3]} 58. Kd8 {[%clk 0:00:10.7]} 58...
Rxc7 {[%clk 0:00:05.7]} 59. Kxc7 {[%clk 0:00:11.3]} 59... Kf8 {[%clk 0:00:05.7]}
60. Kd6 {[%clk 0:00:11.9]} 60... Kg7 {[%clk 0:00:06]} 61. Kc5 {[%clk 0:00:12.7]}
61... Kf8 {[%clk 0:00:06.2]} 62. Kb4 {[%clk 0:00:13.6]} 62... Ke7 {[%clk
0:00:07]} 63. Kxa3 {[%clk 0:00:14.5]} 63... Kf8 {[%clk 0:00:07.6]} 64. Kb4
{[%clk 0:00:15.4]} 64... Ke7 {[%clk 0:00:08.3]} 65. Kc3 {[%clk 0:00:16.3]} 1-0

[Event "*** Titled Tuesday Blitz"]
[Site "Chess.com"]
[Date "2021.04.06"]
[Round "9"]
[White "Mikhal867"]
[Black "Eloist"]
[Result "0-1"]
[WhiteElo "2443"]
[BlackElo "2369"]
[TimeControl "180+1"]
[EndTime "11:46:53 PDT"]
[Termination "Eloist won by resignation"]

1. e4 {[%clk 0:02:43.8]} 1... e6 {[%clk 0:02:59.1]} 2. d4 {[%clk 0:02:42.8]}
2... d5 {[%clk 0:02:59.5]} 3. e5 {[%clk 0:02:41.9]} 3... c5 {[%clk 0:02:59.2]}
4. Qg4 {[%clk 0:02:41.6]} 4... cxd4 {[%clk 0:02:58.6]} 5. Nf3 {[%clk 0:02:40.2]}
5... Nc6 {[%clk 0:02:58.3]} 6. Bd3 {[%clk 0:02:38.8]} 6... f6 {[%clk 0:02:53.9]}
7. Qh5+ {[%clk 0:02:29.7]} 7... Kd7 {[%clk 0:02:51.8]} 8. O-O {[%clk 0:02:21.4]}
8... Qe8 {[%clk 0:02:45.8]} 9. Qxe8+ {[%clk 0:02:07.7]} 9... Kxe8 {[%clk
0:02:46.7]} 10. Re1 {[%clk 0:02:06.7]} 10... fxe5 {[%clk 0:02:39.1]} 11. Nxe5
{[%clk 0:02:06]} 11... Nxe5 {[%clk 0:02:38.4]} 12. Rxe5 {[%clk 0:02:04.7]} 12...
Bd6 {[%clk 0:02:37.7]} 13. Re1 {[%clk 0:02:04.1]} 13... Nf6 {[%clk 0:02:25.7]}
14. Nd2 {[%clk 0:02:01.6]} 14... Bc5 {[%clk 0:01:39]} 15. Nf3 {[%clk 0:01:46.7]}
15... Bd7 {[%clk 0:01:34.3]} 16. a3 {[%clk 0:01:43.2]} 16... a5 {[%clk 0:01:32]}
17. b3 {[%clk 0:01:43.2]} 17... Ne4 {[%clk 0:01:13.1]} 18. Bxe4 {[%clk
0:01:37.4]} 18... dxe4 {[%clk 0:01:14]} 19. Rxe4 {[%clk 0:01:36.6]} 19... Bc6
{[%clk 0:01:13]} 20. Rxe6+ {[%clk 0:01:35.7]} 20... Kd7 {[%clk 0:01:12]} 21. Re1
{[%clk 0:01:30]} 21... Bxf3 {[%clk 0:01:08.7]} 22. gxf3 {[%clk 0:01:29.3]} 22...
Rhf8 {[%clk 0:01:07.9]} 23. Kg2 {[%clk 0:01:27.5]} 23... Ra6 {[%clk 0:01:06.7]}
24. Bf4 {[%clk 0:01:10.7]} 24... Rxf4 {[%clk 0:01:05]} 25. Re4 {[%clk
0:01:04.9]} 25... Raf6 {[%clk 0:00:59.9]} 26. Rxf4 {[%clk 0:00:59.4]} 26... Rxf4
{[%clk 0:00:59.4]} 27. a4 {[%clk 0:01:00]} 27... Rf6 {[%clk 0:00:54.6]} 28. Rd1
{[%clk 0:00:57.3]} 28... Kc6 {[%clk 0:00:51.6]} 29. Kg3 {[%clk 0:00:53.4]} 29...
Re6 {[%clk 0:00:48.5]} 30. Rd2 {[%clk 0:00:51]} 30... Re1 {[%clk 0:00:42.5]} 31.
h3 {[%clk 0:00:48.3]} 31... Bd6+ {[%clk 0:00:28.8]} 32. Kg4 {[%clk 0:00:41.2]}
32... Kc5 {[%clk 0:00:24.1]} 33. f4 {[%clk 0:00:38.9]} 33... Rg1+ {[%clk
0:00:22.5]} 34. Kf3 {[%clk 0:00:38]} 34... Be7 {[%clk 0:00:19.2]} 35. Re2 {[%clk
0:00:36.1]} 35... Bf6 {[%clk 0:00:19.6]} 36. Re8 {[%clk 0:00:33.2]} 36... Kb4
{[%clk 0:00:18.7]} 37. Rc8 {[%clk 0:00:31.3]} 37... Rc1 {[%clk 0:00:17.2]} 38.
Ke4 {[%clk 0:00:30.1]} 38... Re1+ {[%clk 0:00:15.8]} 39. Kf3 {[%clk 0:00:23.2]}
39... Rh1 {[%clk 0:00:16.3]} 40. Kg2 {[%clk 0:00:23.2]} 40... Rc1 {[%clk
0:00:16.4]} 41. Rc7 {[%clk 0:00:19.3]} 41... Ka3 {[%clk 0:00:15.9]} 42. Rxb7
{[%clk 0:00:13.3]} 42... Rxc2 {[%clk 0:00:15.6]} 43. Rb5 {[%clk 0:00:13.8]}
43... d3 {[%clk 0:00:15.7]} 44. Kf3 {[%clk 0:00:13.8]} 44... Kb2 {[%clk
0:00:14.2]} 45. Rxa5 {[%clk 0:00:12.6]} 45... Kc1 {[%clk 0:00:13.4]} 46. Rd5
{[%clk 0:00:11.7]} 46... d2 {[%clk 0:00:12.1]} 47. a5 {[%clk 0:00:11.6]} 47...
d1=Q+ {[%clk 0:00:11.6]} 48. Rxd1+ {[%clk 0:00:11.4]} 48... Kxd1 {[%clk
0:00:12.4]} 49. b4 {[%clk 0:00:10.9]} 49... Rb2 {[%clk 0:00:11.9]} 50. a6 {[%clk
0:00:10.5]} 50... Rxb4 {[%clk 0:00:11.8]} 51. f5 {[%clk 0:00:10.3]} 51... Ra4
{[%clk 0:00:12.7]} 52. a7 {[%clk 0:00:09.9]} 52... Rxa7 {[%clk 0:00:12.8]} 53.
Kg2 {[%clk 0:00:10.1]} 53... Ra4 {[%clk 0:00:12.6]} 54. Kf3 {[%clk 0:00:09.7]}
54... Kd2 {[%clk 0:00:13.5]} 55. Kg2 {[%clk 0:00:09.7]} 55... Ke2 {[%clk
0:00:14.4]} 56. Kg3 {[%clk 0:00:09.6]} 56... Be5+ {[%clk 0:00:14.3]} 57. Kg2
{[%clk 0:00:09.5]} 57... Rf4 {[%clk 0:00:15.2]} 58. f3 {[%clk 0:00:07.9]} 58...
Rxf5 {[%clk 0:00:14.5]} 0-1

[Event "*** Titled Tuesday Blitz"]
[Site "Chess.com"]
[Date "2021.04.06"]
[Round "9"]
[White "LEGENYA1998"]
[Black "atwalcb"]
[Result "0-1"]
[WhiteElo "2240"]
[BlackElo "2475"]
[TimeControl "180+1"]
[EndTime "11:46:55 PDT"]
[Termination "atwalcb won by resignation"]

1. b4 {[%clk 0:03:00.5]} 1... c6 {[%clk 0:02:49.7]} 2. Bb2 {[%clk 0:03:00]} 2...
Qb6 {[%clk 0:02:49.9]} 3. Bc3 {[%clk 0:02:52.8]} 3... Nf6 {[%clk 0:02:47.7]} 4.
d3 {[%clk 0:02:52.4]} 4... Nd5 {[%clk 0:02:45.7]} 5. Qd2 {[%clk 0:02:51.5]} 5...
Nxc3 {[%clk 0:02:45.7]} 6. Qxc3 {[%clk 0:02:51.4]} 6... d5 {[%clk 0:02:43.3]} 7.
a3 {[%clk 0:02:48.2]} 7... Nd7 {[%clk 0:02:43.1]} 8. e3 {[%clk 0:02:48.3]} 8...
a5 {[%clk 0:02:40.9]} 9. bxa5 {[%clk 0:02:44.3]} 9... Rxa5 {[%clk 0:02:41.8]}
10. Nd2 {[%clk 0:02:42.6]} 10... e5 {[%clk 0:02:40.4]} 11. Ngf3 {[%clk
0:02:38.9]} 11... Bd6 {[%clk 0:02:26.4]} 12. Be2 {[%clk 0:02:37.5]} 12... O-O
{[%clk 0:02:25.8]} 13. O-O {[%clk 0:02:37.6]} 13... Qa7 {[%clk 0:02:17.1]} 14.
Rfb1 {[%clk 0:02:24.1]} 14... Rxa3 {[%clk 0:02:08.7]} 15. Rxa3 {[%clk
0:02:24.3]} 15... Qxa3 {[%clk 0:02:09.6]} 16. Qxa3 {[%clk 0:02:22.6]} 16... Bxa3
{[%clk 0:02:10.5]} 17. e4 {[%clk 0:02:21.1]} 17... Bd6 {[%clk 0:01:40.1]} 18.
exd5 {[%clk 0:02:15]} 18... cxd5 {[%clk 0:01:35.3]} 19. Rb5 {[%clk 0:02:15.1]}
19... Nf6 {[%clk 0:01:30.9]} 20. c4 {[%clk 0:02:14.3]} 20... d4 {[%clk
0:01:26.9]} 21. Nxe5 {[%clk 0:02:12.8]} 21... Re8 {[%clk 0:01:07.1]} 22. f4
{[%clk 0:02:12.8]} 22... Bxe5 {[%clk 0:01:02]} 23. Rxe5 {[%clk 0:02:07.1]} 23...
Rxe5 {[%clk 0:01:01.4]} 24. fxe5 {[%clk 0:02:07.1]} 24... Nd7 {[%clk 0:00:55.8]}
25. Nf3 {[%clk 0:02:01.6]} 25... Kf8 {[%clk 0:00:54.6]} 26. Kf2 {[%clk
0:02:00.2]} 26... Ke7 {[%clk 0:00:53.7]} 27. Nxd4 {[%clk 0:01:58.9]} 27... Nxe5
{[%clk 0:00:52.9]} 28. Ke3 {[%clk 0:01:57.1]} 28... Bg4 {[%clk 0:00:46.4]} 29.
Nf3 {[%clk 0:01:37.4]} 29... Bxf3 {[%clk 0:00:30.5]} 30. gxf3 {[%clk 0:01:37.4]}
30... b6 {[%clk 0:00:31.1]} 31. f4 {[%clk 0:01:35]} 31... Nc6 {[%clk 0:00:29.8]}
32. d4 {[%clk 0:01:35.1]} 32... Kd6 {[%clk 0:00:30.1]} 33. Bf3 {[%clk
0:01:31.3]} 33... Ne7 {[%clk 0:00:30.1]} 34. Kd3 {[%clk 0:01:29.9]} 34... g6
{[%clk 0:00:29.2]} 35. Bg2 {[%clk 0:01:27.1]} 35... Nf5 {[%clk 0:00:29.2]} 36.
Bh3 {[%clk 0:01:26]} 36... Nh4 {[%clk 0:00:28.2]} 37. Bf1 {[%clk 0:01:23]} 37...
Nf3 {[%clk 0:00:28.3]} 38. h3 {[%clk 0:01:21.7]} 38... Nh4 {[%clk 0:00:28.5]}
39. Be2 {[%clk 0:01:21.1]} 39... Nf5 {[%clk 0:00:28.7]} 40. Bg4 {[%clk
0:01:20.6]} 40... Ng3 {[%clk 0:00:28.6]} 41. Bf3 {[%clk 0:01:20.2]} 41... h5
{[%clk 0:00:25.2]} 42. Bd1 {[%clk 0:01:14.2]} 42... f6 {[%clk 0:00:24]} 43. Bf3
{[%clk 0:01:14.2]} 43... g5 {[%clk 0:00:23.2]} 44. fxg5 {[%clk 0:01:14.3]} 44...
fxg5 {[%clk 0:00:24.1]} 45. Bg2 {[%clk 0:01:14.3]} 45... h4 {[%clk 0:00:22.8]}
46. Bf3 {[%clk 0:01:14]} 46... Nf5 {[%clk 0:00:22.2]} 47. Bg4 {[%clk 0:01:13.6]}
47... Nh6 {[%clk 0:00:22.4]} 48. Bf3 {[%clk 0:01:13.5]} 48... Nf5 {[%clk
0:00:22.4]} 49. Bg4 {[%clk 0:01:13.6]} 49... Ne7 {[%clk 0:00:22.2]} 50. Ke4
{[%clk 0:01:13.2]} 50... Nc6 {[%clk 0:00:18.1]} 51. Kf5 {[%clk 0:01:07.8]} 51...
Nxd4+ {[%clk 0:00:18.1]} 52. Kxg5 {[%clk 0:01:08.3]} 52... Kc5 {[%clk
0:00:18.2]} 53. Kxh4 {[%clk 0:01:06.1]} 53... Kxc4 {[%clk 0:00:18.7]} 54. Kg5
{[%clk 0:01:02.3]} 54... b5 {[%clk 0:00:19.1]} 55. h4 {[%clk 0:01:00]} 55... b4
{[%clk 0:00:19.4]} 56. Bd1 {[%clk 0:00:57.9]} 56... Ne6+ {[%clk 0:00:18.3]} 57.
Kf6 {[%clk 0:00:57.7]} 57... Nf4 {[%clk 0:00:17.9]} 58. Kg5 {[%clk 0:00:57.8]}
58... Nh3+ {[%clk 0:00:16.8]} 59. Kf6 {[%clk 0:00:56.1]} 59... Nf2 {[%clk
0:00:16.5]} 60. Ba4 {[%clk 0:00:54.9]} 60... Ne4+ {[%clk 0:00:16.8]} 61. Ke5
{[%clk 0:00:52.6]} 61... Nc5 {[%clk 0:00:16.6]} 62. Bd1 {[%clk 0:00:52.3]} 62...
Kc3 {[%clk 0:00:17]} 63. Kf6 {[%clk 0:00:48.4]} 63... Kd2 {[%clk 0:00:17.4]} 64.
Bg4 {[%clk 0:00:44.9]} 64... b3 {[%clk 0:00:16.7]} 65. Bf5 {[%clk 0:00:42.1]}
65... b2 {[%clk 0:00:07.1]} 66. Bb1 {[%clk 0:00:39.7]} 66... Kc1 {[%clk
0:00:07.5]} 67. Ba2 {[%clk 0:00:39.9]} 67... Na4 {[%clk 0:00:06.2]} 68. h5
{[%clk 0:00:33.6]} 68... Nc3 {[%clk 0:00:06.4]} 69. h6 {[%clk 0:00:33.5]} 69...
Nxa2 {[%clk 0:00:06.2]} 70. h7 {[%clk 0:00:34]} 70... b1=Q {[%clk 0:00:06.7]}
71. h8=Q {[%clk 0:00:34.5]} 71... Qb2+ {[%clk 0:00:07.1]} 0-1

[Event "*** Titled Tuesday Blitz"]
[Site "Chess.com"]
[Date "2021.04.06"]
[Round "9"]
[White "Mikhail_Golubev"]
[Black "CakeinSpace2002"]
[Result "1-0"]
[WhiteElo "2564"]
[BlackElo "2336"]
[TimeControl "180+1"]
[EndTime "11:47:01 PDT"]
[Termination "Mikhail_Golubev won by resignation"]

1. e4 {[%clk 0:03:00.9]} 1... c5 {[%clk 0:03:00]} 2. Nf3 {[%clk 0:03:00.2]} 2...
Nc6 {[%clk 0:03:00.2]} 3. Bb5 {[%clk 0:02:59.5]} 3... g6 {[%clk 0:03:00.3]} 4.
O-O {[%clk 0:02:57.8]} 4... Bg7 {[%clk 0:03:00.3]} 5. c3 {[%clk 0:02:57.4]} 5...
e5 {[%clk 0:03:00.3]} 6. d4 {[%clk 0:02:54.8]} 6... cxd4 {[%clk 0:03:01.1]} 7.
cxd4 {[%clk 0:02:54.7]} 7... exd4 {[%clk 0:03:02]} 8. Bf4 {[%clk 0:02:51.4]}
8... Nge7 {[%clk 0:02:59.6]} 9. Bd6 {[%clk 0:02:49.4]} 9... a6 {[%clk
0:02:59.7]} 10. Bc4 {[%clk 0:02:48.9]} 10... O-O {[%clk 0:02:51.9]} 11. Ng5
{[%clk 0:02:35.6]} 11... Qe8 {[%clk 0:02:38.8]} 12. Re1 {[%clk 0:02:21.7]} 12...
Ne5 {[%clk 0:02:38.2]} 13. Bb3 {[%clk 0:02:16.4]} 13... h6 {[%clk 0:02:29.5]}
14. Nf3 {[%clk 0:02:12.1]} 14... Nxf3+ {[%clk 0:02:29.2]} 15. Qxf3 {[%clk
0:02:12.1]} 15... b5 {[%clk 0:02:13.5]} 16. e5 {[%clk 0:02:11.2]} 16... Ra7
{[%clk 0:02:13.1]} 17. Nd2 {[%clk 0:01:57.1]} 17... Bb7 {[%clk 0:02:10.8]} 18.
Ne4 {[%clk 0:01:47.1]} 18... Kh8 {[%clk 0:01:45.4]} 19. Rad1 {[%clk 0:01:44.5]}
19... Nf5 {[%clk 0:01:41.4]} 20. Bxf8 {[%clk 0:01:38.7]} 20... Qxf8 {[%clk
0:01:41.9]} 21. g4 {[%clk 0:01:29.6]} 21... Nh4 {[%clk 0:01:32.9]} 22. Qg3
{[%clk 0:01:29.4]} 22... Qe7 {[%clk 0:01:22.4]} 23. f4 {[%clk 0:01:26.6]} 23...
g5 {[%clk 0:01:16.9]} 24. Rd3 {[%clk 0:01:10.5]} 24... gxf4 {[%clk 0:01:06.2]}
25. Qxf4 {[%clk 0:01:10]} 25... Qxe5 {[%clk 0:00:47.5]} 26. Qxe5 {[%clk
0:00:48.5]} 26... Bxe5 {[%clk 0:00:48.4]} 27. Bxf7 {[%clk 0:00:42.6]} 27... Kg7
{[%clk 0:00:39.2]} 28. Bb3 {[%clk 0:00:40]} 28... d6 {[%clk 0:00:36.6]} 29. Rh3
{[%clk 0:00:37.8]} 29... Ng6 {[%clk 0:00:36]} 30. g5 {[%clk 0:00:33.2]} 30...
hxg5 {[%clk 0:00:33.3]} 31. Nxg5 {[%clk 0:00:32.2]} 31... Nf4 {[%clk 0:00:30.1]}
32. Rh7+ {[%clk 0:00:19.3]} 32... Kg6 {[%clk 0:00:30.1]} 33. h4 {[%clk
0:00:19.4]} 33... Nh3+ {[%clk 0:00:26.8]} 34. Kf1 {[%clk 0:00:14]} 34... Nxg5
{[%clk 0:00:26.5]} 35. Bc2+ {[%clk 0:00:14.1]} 35... Kf6 {[%clk 0:00:24.4]} 36.
hxg5+ {[%clk 0:00:13.9]} 36... Kxg5 {[%clk 0:00:25.3]} 37. Be4 {[%clk
0:00:10.9]} 37... Bxe4 {[%clk 0:00:21.6]} 38. Rxa7 {[%clk 0:00:10.6]} 38... Bd3+
{[%clk 0:00:20.1]} 39. Kg2 {[%clk 0:00:10.5]} 39... Bc4 {[%clk 0:00:17.1]} 40.
b3 {[%clk 0:00:10.5]} 40... Bd5+ {[%clk 0:00:17.2]} 41. Kf2 {[%clk 0:00:10.2]}
41... d3 {[%clk 0:00:17.6]} 42. Ke3 {[%clk 0:00:10.4]} 42... d2 {[%clk
0:00:14.6]} 43. Kxd2 {[%clk 0:00:09.9]} 43... Bf4+ {[%clk 0:00:14]} 44. Kd3
{[%clk 0:00:10]} 44... Bf3 {[%clk 0:00:12.8]} 45. Rg1+ {[%clk 0:00:09.2]} 45...
Kf5 {[%clk 0:00:12.6]} 46. Rxa6 {[%clk 0:00:09.3]} 46... d5 {[%clk 0:00:11.3]}
47. Ra5 {[%clk 0:00:07.2]} 47... Be4+ {[%clk 0:00:12.2]} 48. Ke2 {[%clk
0:00:07.1]} 48... d4 {[%clk 0:00:06.5]} 49. Rxb5+ {[%clk 0:00:07.2]} 49... Ke6
{[%clk 0:00:07.1]} 50. Rd1 {[%clk 0:00:07.6]} 50... d3+ {[%clk 0:00:08]} 51.
Rxd3 {[%clk 0:00:07.6]} 51... Bxd3+ {[%clk 0:00:07.8]} 52. Kxd3 {[%clk
0:00:07.9]} 52... Bc7 {[%clk 0:00:08.7]} 53. a4 {[%clk 0:00:08.1]} 53... Kd6
{[%clk 0:00:09.2]} 54. Kc4 {[%clk 0:00:08.4]} 54... Kc6 {[%clk 0:00:10]} 55. Rd5
{[%clk 0:00:08.7]} 55... Bg3 {[%clk 0:00:10.8]} 56. Rg5 {[%clk 0:00:08.8]} 56...
Be1 {[%clk 0:00:11.7]} 57. Rg6+ {[%clk 0:00:09.1]} 57... Kb7 {[%clk 0:00:11.7]}
58. b4 {[%clk 0:00:10]} 58... Bd2 {[%clk 0:00:12.6]} 59. a5 {[%clk 0:00:09.8]}
59... Bc1 {[%clk 0:00:13.5]} 60. Kb5 {[%clk 0:00:10.1]} 1-0